[Event "Titled Tuesday Blitz April 25 Early 2023"]
[White "demon64fields"]
[Black "Karas, Marek"]
[BlackFideId "14928558"]
[WhiteElo "2891"]
[BlackElo "2233"]
[Result "0-1"]
[Round "01"]
[TimeControl "180+2"]
[Date "2023.04.25"]
[WhiteClock "0:00:01"]
[BlackClock "0:00:08"]

1. Nf3 {[%clk 0:02:59]}  Nf6 {[%clk 0:02:57]} 2. g3 {[%clk 0:02:58]}  d5 {[%clk 0:02:56]} 3. Bg2 {[%clk 0:02:58]}  c5 {[%clk 0:02:55]} 4. O-O {[%clk 0:02:57]}  Nc6 {[%clk 0:02:55]} 5. d4 {[%clk 0:02:56]}  e6 {[%clk 0:02:51]} 6. c4 {[%clk 0:02:54]}  cxd4 {[%clk 0:02:51]} 7. Nxd4 {[%clk 0:02:52]}  Be7 {[%clk 0:02:50]} 8. cxd5 {[%clk 0:02:49]}  exd5 {[%clk 0:02:49]} 9. Nc3 {[%clk 0:02:41]}  O-O {[%clk 0:02:46]} 10. Nb3 {[%clk 0:02:38]}  d4 {[%clk 0:02:44]} 11. Ne4 {[%clk 0:02:35]}  Bf5 {[%clk 0:02:41]} 12. Nec5 {[%clk 0:02:29]}  Qb6 {[%clk 0:02:31]} 13. Nxb7 {[%clk 0:02:24]}  Qxb7 {[%clk 0:02:28]} 14. Na5 {[%clk 0:02:23]}  Qb6 {[%clk 0:02:25]} 15. Nxc6 {[%clk 0:02:20]}  Bc5 {[%clk 0:02:24]} 16. b4 {[%clk 0:02:12]}  Bxb4 {[%clk 0:02:19]} 17. Qb3 {[%clk 0:02:05]}  Bc3 {[%clk 0:02:13]} 18. Ba3 {[%clk 0:01:52]}  Rfe8 {[%clk 0:01:47]} 19. Ne7+ {[%clk 0:01:47]}  Rxe7 {[%clk 0:01:46]} 20. Bxe7 {[%clk 0:01:46]}  Re8 {[%clk 0:01:46]} 21. Bxf6 {[%clk 0:01:42]}  Qxb3 {[%clk 0:01:36]} 22. axb3 {[%clk 0:01:40]}  Bxa1 {[%clk 0:01:35]} 23. Bxg7 {[%clk 0:01:34]}  Rxe2 {[%clk 0:01:25]} 24. Rxa1 {[%clk 0:01:32]}  Kxg7 {[%clk 0:01:23]} 25. Bf1 {[%clk 0:01:21]}  Rb2 {[%clk 0:01:16]} 26. Rd1 {[%clk 0:01:16]}  Rxb3 {[%clk 0:01:06]} 27. Rxd4 {[%clk 0:01:13]}  Rb1 {[%clk 0:01:02]} 28. Kg2 {[%clk 0:01:13]}  Bc8 {[%clk 0:00:48]} 29. Be2 {[%clk 0:01:00]}  Bb7+ {[%clk 0:00:45]} 30. Bf3 {[%clk 0:00:57]}  Bxf3+ {[%clk 0:00:45]} 31. Kxf3 {[%clk 0:00:57]}  Rb8 {[%clk 0:00:45]} 32. Ra4 {[%clk 0:00:54]}  Ra8 {[%clk 0:00:45]} 33. Ra6 {[%clk 0:00:53]}  Kf8 {[%clk 0:00:41]} 34. h4 {[%clk 0:00:52]}  Ke7 {[%clk 0:00:40]} 35. Kf4 {[%clk 0:00:50]}  Kf8 {[%clk 0:00:38]} 36. h5 {[%clk 0:00:47]}  Kg8 {[%clk 0:00:37]} 37. g4 {[%clk 0:00:46]}  h6 {[%clk 0:00:30]} 38. Rxh6 {[%clk 0:00:41]}  a5 {[%clk 0:00:30]} 39. Rc6 {[%clk 0:00:41]}  a4 {[%clk 0:00:30]} 40. Rc2 {[%clk 0:00:39]}  a3 {[%clk 0:00:30]} 41. Ra2 {[%clk 0:00:37]}  Kg7 {[%clk 0:00:29]} 42. Kg5 {[%clk 0:00:37]}  Ra5+ {[%clk 0:00:27]} 43. Kh4 {[%clk 0:00:36]}  f6 {[%clk 0:00:24]} 44. f4 {[%clk 0:00:35]}  Kh6 {[%clk 0:00:24]} 45. Kg3 {[%clk 0:00:25]}  Ra6 {[%clk 0:00:21]} 46. Kf3 {[%clk 0:00:24]}  Ra4 {[%clk 0:00:21]} 47. Ke3 {[%clk 0:00:22]}  Ra5 {[%clk 0:00:22]} 48. Ke4 {[%clk 0:00:22]}  Kg7 {[%clk 0:00:20]} 49. Kf3 {[%clk 0:00:12]}  Kh6 {[%clk 0:00:20]} 50. Kg3 {[%clk 0:00:11]}  Ra4 {[%clk 0:00:19]} 51. Kh4 {[%clk 0:00:08]}  Rxf4 {[%clk 0:00:12]} 52. Rxa3 {[%clk 0:00:05]}  f5 {[%clk 0:00:12]} 53. Ra6+ {[%clk 0:00:01]}  Kh7 {[%clk 0:00:10]} 54. Kg5 {[%clk 0:00:01]}  Rxg4+ {[%clk 0:00:11]} 55. Kxf5 {[%clk 0:00:01]}  Rg1 {[%clk 0:00:10]} 56. Rg6 {[%clk 0:00:01]}  Rh1 {[%clk 0:00:08]} 0-1


[Site "https://www.chess.com"]

[Event "Titled Tuesday Blitz April 25 Early 2023"]
[White "Goncalves, Davi Sulzbacher"]
[Black "Kuzubov, Yuriy"]
[WhiteFideId "2154510"]
[BlackFideId "14112906"]
[WhiteElo "2182"]
[BlackElo "2496"]
[Result "0-1"]
[Round "01"]
[TimeControl "180+2"]
[Date "2023.04.25"]
[WhiteClock "0:00:12"]
[BlackClock "0:01:14"]

1. Nf3 {[%clk 0:03:00]}  d5 {[%clk 0:02:59]} 2. c4 {[%clk 0:02:57]}  d4 {[%clk 0:02:59]} 3. e3 {[%clk 0:02:58]}  dxe3 {[%clk 0:02:56]} 4. fxe3 {[%clk 0:02:57]}  g6 {[%clk 0:02:56]} 5. d4 {[%clk 0:02:57]}  Bg7 {[%clk 0:02:56]} 6. Nc3 {[%clk 0:02:56]}  c5 {[%clk 0:02:56]} 7. Be2 {[%clk 0:02:54]}  Nf6 {[%clk 0:02:54]} 8. O-O {[%clk 0:02:53]}  O-O {[%clk 0:02:54]} 9. d5 {[%clk 0:02:21]}  Bg4 {[%clk 0:02:53]} 10. e4 {[%clk 0:02:20]}  Bxf3 {[%clk 0:02:51]} 11. Bxf3 {[%clk 0:02:19]}  Nfd7 {[%clk 0:02:45]} 12. Be3 {[%clk 0:02:19]}  b6 {[%clk 0:02:41]} 13. e5 {[%clk 0:01:31]}  Nxe5 {[%clk 0:02:41]} 14. d6 {[%clk 0:01:32]}  Nbc6 {[%clk 0:02:40]} 15. Bd5 {[%clk 0:00:39]}  e6 {[%clk 0:02:30]} 16. Be4 {[%clk 0:00:34]}  Rc8 {[%clk 0:02:27]} 17. Bf4 {[%clk 0:00:26]}  Nd4 {[%clk 0:02:23]} 18. b3 {[%clk 0:00:24]}  Qxd6 {[%clk 0:02:20]} 19. Ne2 {[%clk 0:00:22]}  Rfd8 {[%clk 0:02:08]} 20. Kh1 {[%clk 0:00:20]}  Qe7 {[%clk 0:02:02]} 21. Qe1 {[%clk 0:00:19]}  f5 {[%clk 0:01:52]} 22. Nxd4 {[%clk 0:00:18]}  Rxd4 {[%clk 0:01:50]} 23. Bb7 {[%clk 0:00:18]}  Nd3 {[%clk 0:01:46]} 24. Bxc8 {[%clk 0:00:16]}  Nxe1 {[%clk 0:01:41]} 25. Raxe1 {[%clk 0:00:16]}  e5 {[%clk 0:01:38]} 26. Ba6 {[%clk 0:00:11]}  e4 {[%clk 0:01:29]} 27. Be3 {[%clk 0:00:11]}  Rd3 {[%clk 0:01:29]} 28. Bb5 {[%clk 0:00:12]}  Qd6 {[%clk 0:01:26]} 29. Bg5 {[%clk 0:00:10]}  h6 {[%clk 0:01:23]} 30. Bf4 {[%clk 0:00:10]}  Be5 {[%clk 0:01:20]} 31. Bxe5 {[%clk 0:00:11]}  Qxe5 {[%clk 0:01:20]} 32. Bc6 {[%clk 0:00:11]}  Kg7 {[%clk 0:01:20]} 33. Bd5 {[%clk 0:00:12]}  e3 {[%clk 0:01:18]} 34. Re2 {[%clk 0:00:12]}  f4 {[%clk 0:01:17]} 35. Rfe1 {[%clk 0:00:13]}  Rd2 {[%clk 0:01:16]} 36. Bf3 {[%clk 0:00:13]}  Rxe2 {[%clk 0:01:14]} 37. Bxe2 {[%clk 0:00:12]}  Qc3 {[%clk 0:01:14]} 38. Rf1 {[%clk 0:00:12]}  Qd2 {[%clk 0:01:14]} 39. Bf3 {[%clk 0:00:13]}  e2 {[%clk 0:01:14]} 40. Rg1 {[%clk 0:00:12]}  e1=Q {[%clk 0:01:14]} 0-1


[Site "https://www.chess.com"]

[Event "Titled Tuesday Blitz April 25 Early 2023"]
[White "Bachmann, Axel"]
[Black "Romkachess"]
[WhiteFideId "3700488"]
[WhiteElo "2605"]
[BlackElo "2474"]
[Result "0-1"]
[Round "01"]
[TimeControl "180+2"]
[Date "2023.04.25"]
[WhiteClock "0:00:03"]
[BlackClock "0:00:02"]

1. c4 {[%clk 0:02:59]}  e5 {[%clk 0:02:59]} 2. Nc3 {[%clk 0:02:44]}  Nc6 {[%clk 0:02:59]} 3. g3 {[%clk 0:02:44]}  Nf6 {[%clk 0:02:58]} 4. Bg2 {[%clk 0:02:44]}  Bc5 {[%clk 0:02:35]} 5. e3 {[%clk 0:02:39]}  O-O {[%clk 0:02:30]} 6. Nge2 {[%clk 0:02:36]}  Re8 {[%clk 0:02:26]} 7. O-O {[%clk 0:02:34]}  a5 {[%clk 0:01:51]} 8. d4 {[%clk 0:02:33]}  exd4 {[%clk 0:01:52]} 9. exd4 {[%clk 0:02:34]}  Ba7 {[%clk 0:01:51]} 10. Nb5 {[%clk 0:02:16]}  d6 {[%clk 0:01:47]} 11. Nxa7 {[%clk 0:02:13]}  Rxa7 {[%clk 0:01:48]} 12. h3 {[%clk 0:02:11]}  Bf5 {[%clk 0:01:47]} 13. d5 {[%clk 0:02:09]}  Ne5 {[%clk 0:01:46]} 14. Nd4 {[%clk 0:02:09]}  Bd3 {[%clk 0:01:42]} 15. Re1 {[%clk 0:02:08]}  Bxc4 {[%clk 0:01:42]} 16. b3 {[%clk 0:01:58]}  Ba6 {[%clk 0:01:37]} 17. Re3 {[%clk 0:01:52]}  Ra8 {[%clk 0:01:35]} 18. Bb2 {[%clk 0:01:50]}  Qd7 {[%clk 0:01:24]} 19. Qc2 {[%clk 0:01:42]}  Ng6 {[%clk 0:01:11]} 20. Rc3 {[%clk 0:01:26]}  Rac8 {[%clk 0:00:54]} 21. Rc1 {[%clk 0:01:20]}  Re7 {[%clk 0:00:54]} 22. Kh2 {[%clk 0:00:55]}  h5 {[%clk 0:00:37]} 23. Qd2 {[%clk 0:00:35]}  Ne4 {[%clk 0:00:33]} 24. Bxe4 {[%clk 0:00:35]}  Rxe4 {[%clk 0:00:34]} 25. R3c2 {[%clk 0:00:34]}  Ne5 {[%clk 0:00:27]} 26. Kg2 {[%clk 0:00:29]}  Bd3 {[%clk 0:00:20]} 27. f4 {[%clk 0:00:20]}  Rxd4 {[%clk 0:00:19]} 28. Bxd4 {[%clk 0:00:17]}  Be4+ {[%clk 0:00:19]} 29. Kf2 {[%clk 0:00:16]}  Nf3 {[%clk 0:00:15]} 30. Qe3 {[%clk 0:00:13]}  Nxd4 {[%clk 0:00:15]} 31. Qxd4 {[%clk 0:00:11]}  Bxc2 {[%clk 0:00:14]} 32. Rxc2 {[%clk 0:00:11]}  Qxh3 {[%clk 0:00:15]} 33. Re2 {[%clk 0:00:10]}  Qh2+ {[%clk 0:00:14]} 34. Kf3 {[%clk 0:00:10]}  Qh1+ {[%clk 0:00:13]} 35. Kf2 {[%clk 0:00:10]}  Qb1 {[%clk 0:00:10]} 36. Qc3 {[%clk 0:00:06]}  Qf5 {[%clk 0:00:07]} 37. Qf3 {[%clk 0:00:04]}  c6 {[%clk 0:00:05]} 38. dxc6 {[%clk 0:00:03]}  Rxc6 {[%clk 0:00:04]} 39. Rd2 {[%clk 0:00:01]}  a4 {[%clk 0:00:03]} 40. Ke2 {[%clk 0:00:01]}  axb3 {[%clk 0:00:03]} 41. axb3 {[%clk 0:00:02]}  h4 {[%clk 0:00:03]} 42. g4 {[%clk 0:00:02]}  Qb5+ {[%clk 0:00:02]} 43. Kf2 {[%clk 0:00:03]}  Qb4 {[%clk 0:00:01]} 44. g5 {[%clk 0:00:03]}  Rc3 {[%clk 0:00:01]} 45. Qg4 {[%clk 0:00:03]}  Qc5+ {[%clk 0:00:02]} 46. Kg2 {[%clk 0:00:03]}  Rg3+ {[%clk 0:00:02]} 47. Kh2 {[%clk 0:00:02]}  Rxg4 {[%clk 0:00:01]} 48. Re2 {[%clk 0:00:03]}  Qg1+ {[%clk 0:00:02]} 49. Kh3 {[%clk 0:00:03]}  Qg3# {[%clk 0:00:02]} 0-1


[Site "https://www.chess.com"]

[Event "Titled Tuesday Blitz April 25 Early 2023"]
[White "Shaik Sumer Arsh"]
[Black "Kamsky, Gata"]
[WhiteFideId "45020000"]
[BlackFideId "2000024"]
[WhiteElo "2350"]
[BlackElo "2660"]
[Result "1/2-1/2"]
[Round "01"]
[TimeControl "180+2"]
[Date "2023.04.25"]
[WhiteClock "0:00:24"]
[BlackClock "0:00:18"]

1. d4 {[%clk 0:02:42]}  Nf6 {[%clk 0:02:55]} 2. c4 {[%clk 0:02:41]}  e6 {[%clk 0:02:54]} 3. Nc3 {[%clk 0:02:42]}  Bb4 {[%clk 0:02:53]} 4. e3 {[%clk 0:02:42]}  O-O {[%clk 0:02:52]} 5. Ne2 {[%clk 0:02:42]}  d5 {[%clk 0:02:52]} 6. a3 {[%clk 0:02:04]}  Be7 {[%clk 0:02:48]} 7. Ng3 {[%clk 0:01:53]}  a6 {[%clk 0:02:25]} 8. cxd5 {[%clk 0:01:44]}  exd5 {[%clk 0:02:24]} 9. Bd3 {[%clk 0:01:38]}  c5 {[%clk 0:02:21]} 10. dxc5 {[%clk 0:01:36]}  Bxc5 {[%clk 0:02:20]} 11. O-O {[%clk 0:01:36]}  Nc6 {[%clk 0:02:19]} 12. b4 {[%clk 0:01:36]}  Bd6 {[%clk 0:02:15]} 13. Bb2 {[%clk 0:01:36]}  Be5 {[%clk 0:02:00]} 14. Qc2 {[%clk 0:01:18]}  d4 {[%clk 0:01:22]} 15. Nce4 {[%clk 0:01:11]}  dxe3 {[%clk 0:01:21]} 16. Nxf6+ {[%clk 0:01:06]}  Bxf6 {[%clk 0:01:20]} 17. Bxh7+ {[%clk 0:01:01]}  Kh8 {[%clk 0:01:19]} 18. Bxf6 {[%clk 0:00:58]}  Qxf6 {[%clk 0:01:18]} 19. fxe3 {[%clk 0:00:59]}  Qh6 {[%clk 0:01:16]} 20. Be4 {[%clk 0:00:56]}  Qxe3+ {[%clk 0:01:15]} 21. Kh1 {[%clk 0:00:56]}  Be6 {[%clk 0:01:07]} 22. Rae1 {[%clk 0:00:45]}  Qg5 {[%clk 0:01:04]} 23. Bxc6 {[%clk 0:00:30]}  bxc6 {[%clk 0:01:00]} 24. Qxc6 {[%clk 0:00:30]}  a5 {[%clk 0:00:50]} 25. Qe4 {[%clk 0:00:24]}  axb4 {[%clk 0:00:49]} 26. axb4 {[%clk 0:00:25]}  Rab8 {[%clk 0:00:47]} 27. Rf4 {[%clk 0:00:24]}  Kg8 {[%clk 0:00:31]} 28. Rh4 {[%clk 0:00:23]}  Rfe8 {[%clk 0:00:20]} 29. Qh7+ {[%clk 0:00:20]}  Kf8 {[%clk 0:00:20]} 30. Ne4 {[%clk 0:00:18]}  Qe5 {[%clk 0:00:16]} 31. Qh8+ {[%clk 0:00:16]}  Ke7 {[%clk 0:00:16]} 32. Qh5 {[%clk 0:00:17]}  Qxh5 {[%clk 0:00:16]} 33. Rxh5 {[%clk 0:00:18]}  Rxb4 {[%clk 0:00:15]} 34. Nc5 {[%clk 0:00:18]}  Rb6 {[%clk 0:00:15]} 35. Nxe6 {[%clk 0:00:18]}  Rxe6 {[%clk 0:00:15]} 36. Rxe6+ {[%clk 0:00:19]}  Kxe6 {[%clk 0:00:16]} 37. Rg5 {[%clk 0:00:20]}  Kf6 {[%clk 0:00:16]} 38. h4 {[%clk 0:00:20]}  Re4 {[%clk 0:00:16]} 39. g3 {[%clk 0:00:20]}  Re2 {[%clk 0:00:16]} 40. Rg4 {[%clk 0:00:20]}  g6 {[%clk 0:00:16]} 41. Rf4+ {[%clk 0:00:20]}  Ke6 {[%clk 0:00:16]} 42. Kg1 {[%clk 0:00:21]}  f5 {[%clk 0:00:17]} 43. Kf1 {[%clk 0:00:21]}  Rd2 {[%clk 0:00:16]} 44. Rf2 {[%clk 0:00:22]}  Rxf2+ {[%clk 0:00:16]} 45. Kxf2 {[%clk 0:00:22]}  Kf6 {[%clk 0:00:15]} 46. Kf3 {[%clk 0:00:23]}  g5 {[%clk 0:00:16]} 47. hxg5+ {[%clk 0:00:22]}  Kxg5 {[%clk 0:00:16]} 48. Kf2 {[%clk 0:00:22]}  Kg4 {[%clk 0:00:17]} 49. Kg2 {[%clk 0:00:23]}  f4 {[%clk 0:00:17]} 50. gxf4 {[%clk 0:00:24]}  Kxf4 {[%clk 0:00:18]} 1/2-1/2


[Site "https://www.chess.com"]

[Event "Titled Tuesday Blitz April 25 Early 2023"]
[White "Grigorov, Grigor"]
[Black "Fernandez Siles, Luis"]
[WhiteFideId "2907313"]
[BlackFideId "2209420"]
[WhiteElo "2510"]
[BlackElo "2195"]
[Result "1/2-1/2"]
[Round "01"]
[TimeControl "180+2"]
[Date "2023.04.25"]
[WhiteClock "0:00:26"]
[BlackClock "0:00:37"]

1. d4 {[%clk 0:02:59]}  Nf6 {[%clk 0:02:59]} 2. Nf3 {[%clk 0:02:58]}  g6 {[%clk 0:02:59]} 3. Bg5 {[%clk 0:02:58]}  Bg7 {[%clk 0:02:58]} 4. Nbd2 {[%clk 0:02:58]}  O-O {[%clk 0:02:58]} 5. c3 {[%clk 0:02:58]}  d5 {[%clk 0:02:55]} 6. e3 {[%clk 0:02:58]}  b6 {[%clk 0:02:51]} 7. Be2 {[%clk 0:02:57]}  c5 {[%clk 0:02:51]} 8. O-O {[%clk 0:02:57]}  Ba6 {[%clk 0:02:48]} 9. Bxa6 {[%clk 0:02:56]}  Nxa6 {[%clk 0:02:49]} 10. Qe2 {[%clk 0:02:56]}  Nb8 {[%clk 0:02:29]} 11. e4 {[%clk 0:02:49]}  dxe4 {[%clk 0:02:20]} 12. Nxe4 {[%clk 0:02:43]}  cxd4 {[%clk 0:02:16]} 13. Nxd4 {[%clk 0:02:41]}  Qd5 {[%clk 0:01:59]} 14. Bxf6 {[%clk 0:02:41]}  exf6 {[%clk 0:01:55]} 15. Qf3 {[%clk 0:02:25]}  Kh8 {[%clk 0:01:46]} 16. Rfd1 {[%clk 0:02:21]}  f5 {[%clk 0:01:42]} 17. Ng5 {[%clk 0:02:21]}  Qxf3 {[%clk 0:01:40]} 18. Ngxf3 {[%clk 0:02:22]}  Na6 {[%clk 0:01:38]} 19. Nc6 {[%clk 0:02:02]}  Rfc8 {[%clk 0:01:24]} 20. Ne7 {[%clk 0:01:54]}  Rc7 {[%clk 0:01:18]} 21. Nd5 {[%clk 0:01:49]}  Rd7 {[%clk 0:01:15]} 22. Rd2 {[%clk 0:01:36]}  Nc5 {[%clk 0:01:10]} 23. Rad1 {[%clk 0:01:35]}  Ne4 {[%clk 0:01:10]} 24. Rd3 {[%clk 0:01:29]}  Nc5 {[%clk 0:01:07]} 25. R3d2 {[%clk 0:01:25]}  Ne4 {[%clk 0:01:07]} 26. Rc2 {[%clk 0:01:23]}  Rad8 {[%clk 0:01:04]} 27. c4 {[%clk 0:01:23]}  Nf6 {[%clk 0:01:01]} 28. Ne5 {[%clk 0:01:12]}  Rb7 {[%clk 0:01:00]} 29. Nc6 {[%clk 0:00:56]}  Rd6 {[%clk 0:00:54]} 30. Ncb4 {[%clk 0:00:33]}  a5 {[%clk 0:00:52]} 31. Nd3 {[%clk 0:00:33]}  Nxd5 {[%clk 0:00:46]} 32. cxd5 {[%clk 0:00:32]}  Bf6 {[%clk 0:00:39]} 33. Nf4 {[%clk 0:00:26]}  Rbd7 {[%clk 0:00:37]} 1/2-1/2


[Site "https://www.chess.com"]

[Event "Titled Tuesday Blitz April 25 Early 2023"]
[White "Indjic, Aleksandar"]
[Black "Hajiyev, Kanan"]
[WhiteFideId "911925"]
[BlackFideId "13404148"]
[WhiteElo "2614"]
[BlackElo "2103"]
[Result "1-0"]
[Round "01"]
[TimeControl "180+2"]
[Date "2023.04.25"]
[WhiteClock "0:01:40"]
[BlackClock "0:00:04"]

1. c4 {[%clk 0:02:57]}  c6 {[%clk 0:02:57]} 2. d4 {[%clk 0:02:52]}  d5 {[%clk 0:02:58]} 3. Nc3 {[%clk 0:02:52]}  Nf6 {[%clk 0:02:58]} 4. Nf3 {[%clk 0:02:51]}  g6 {[%clk 0:02:58]} 5. h3 {[%clk 0:02:45]}  Bg7 {[%clk 0:02:57]} 6. cxd5 {[%clk 0:02:40]}  cxd5 {[%clk 0:02:58]} 7. Bf4 {[%clk 0:02:40]}  O-O {[%clk 0:02:57]} 8. e3 {[%clk 0:02:40]}  Nc6 {[%clk 0:02:56]} 9. Bd3 {[%clk 0:02:40]}  Nd7 {[%clk 0:02:55]} 10. Bg5 {[%clk 0:02:27]}  Qa5 {[%clk 0:01:35]} 11. a3 {[%clk 0:02:10]}  e5 {[%clk 0:01:11]} 12. b4 {[%clk 0:02:09]}  Nxb4 {[%clk 0:01:10]} 13. axb4 {[%clk 0:02:10]}  Qxb4 {[%clk 0:01:11]} 14. Qd2 {[%clk 0:02:10]}  exd4 {[%clk 0:00:27]} 15. exd4 {[%clk 0:02:10]}  Re8+ {[%clk 0:00:26]} 16. Ne2 {[%clk 0:02:08]}  Qd6 {[%clk 0:00:22]} 17. O-O {[%clk 0:02:07]}  Nb6 {[%clk 0:00:12]} 18. Rfb1 {[%clk 0:02:05]}  Nc4 {[%clk 0:00:10]} 19. Qb4 {[%clk 0:02:05]}  Qd7 {[%clk 0:00:04]} 20. Bf4 {[%clk 0:02:01]}  b6 {[%clk 0:00:02]} 21. Ne5 {[%clk 0:01:52]}  Nxe5 {[%clk 0:00:01]} 22. dxe5 {[%clk 0:01:53]}  Bb7 {[%clk 0:00:02]} 23. Bb5 {[%clk 0:01:53]}  Qe6 {[%clk 0:00:01]} 24. Nd4 {[%clk 0:01:50]}  Qe7 {[%clk 0:00:01]} 25. Bxe8 {[%clk 0:01:48]}  Qxe8 {[%clk 0:00:02]} 26. Re1 {[%clk 0:01:45]}  h6 {[%clk 0:00:02]} 27. Qd2 {[%clk 0:01:44]}  g5 {[%clk 0:00:02]} 28. Bg3 {[%clk 0:01:44]}  Kh7 {[%clk 0:00:02]} 29. h4 {[%clk 0:01:44]}  Qe7 {[%clk 0:00:03]} 30. Nf5 {[%clk 0:01:43]}  Qd8 {[%clk 0:00:03]} 31. Nxg7 {[%clk 0:01:41]}  Kxg7 {[%clk 0:00:04]} 32. e6 {[%clk 0:01:41]}  f6 {[%clk 0:00:04]} 33. e7 {[%clk 0:01:41]}  Qd7 {[%clk 0:00:04]} 34. Rac1 {[%clk 0:01:40]} 1-0


[Site "https://www.chess.com"]

[Event "Titled Tuesday Blitz April 25 Early 2023"]
[White "Quesada Perez, Yuniesky"]
[Black "Tanmay Jain"]
[WhiteFideId "3504409"]
[BlackFideId "45015481"]
[WhiteElo "2585"]
[BlackElo "2032"]
[Result "1-0"]
[Round "01"]
[TimeControl "180+2"]
[Date "2023.04.25"]
[WhiteClock "0:00:08"]
[BlackClock "0:00:03"]

1. e4 {[%clk 0:02:56]}  e5 {[%clk 0:02:57]} 2. Nf3 {[%clk 0:02:55]}  Nc6 {[%clk 0:02:57]} 3. Bb5 {[%clk 0:02:52]}  a6 {[%clk 0:02:57]} 4. Ba4 {[%clk 0:02:52]}  Nf6 {[%clk 0:02:57]} 5. O-O {[%clk 0:02:51]}  b5 {[%clk 0:02:56]} 6. Bb3 {[%clk 0:02:51]}  Bc5 {[%clk 0:02:55]} 7. a4 {[%clk 0:02:49]}  Bb7 {[%clk 0:02:54]} 8. d3 {[%clk 0:02:41]}  d6 {[%clk 0:02:52]} 9. c3 {[%clk 0:02:35]}  O-O {[%clk 0:02:45]} 10. Bg5 {[%clk 0:02:29]}  Bb6 {[%clk 0:02:33]} 11. Nbd2 {[%clk 0:02:27]}  Qe7 {[%clk 0:02:19]} 12. Nh4 {[%clk 0:02:17]}  Na5 {[%clk 0:01:31]} 13. Nf5 {[%clk 0:02:12]}  Qd8 {[%clk 0:01:31]} 14. Ba2 {[%clk 0:02:04]}  Bc8 {[%clk 0:01:30]} 15. b4 {[%clk 0:01:37]}  Nb7 {[%clk 0:01:00]} 16. Qf3 {[%clk 0:01:26]}  Bxf5 {[%clk 0:00:50]} 17. Qxf5 {[%clk 0:01:27]}  Qd7 {[%clk 0:00:44]} 18. Qf3 {[%clk 0:01:11]}  Qg4 {[%clk 0:00:40]} 19. Bxf6 {[%clk 0:01:09]}  Qxf3 {[%clk 0:00:40]} 20. Nxf3 {[%clk 0:01:09]}  gxf6 {[%clk 0:00:41]} 21. Bd5 {[%clk 0:01:07]}  Rab8 {[%clk 0:00:38]} 22. Nh4 {[%clk 0:01:07]}  Nd8 {[%clk 0:00:36]} 23. axb5 {[%clk 0:01:04]}  axb5 {[%clk 0:00:36]} 24. Nf5 {[%clk 0:01:04]}  Re8 {[%clk 0:00:29]} 25. g3 {[%clk 0:01:03]}  c6 {[%clk 0:00:29]} 26. Bb3 {[%clk 0:01:02]}  Ne6 {[%clk 0:00:29]} 27. Ra6 {[%clk 0:00:46]}  Kf8 {[%clk 0:00:21]} 28. Kg2 {[%clk 0:00:43]}  Red8 {[%clk 0:00:20]} 29. f4 {[%clk 0:00:33]}  exf4 {[%clk 0:00:19]} 30. gxf4 {[%clk 0:00:33]}  d5 {[%clk 0:00:20]} 31. exd5 {[%clk 0:00:29]}  cxd5 {[%clk 0:00:21]} 32. d4 {[%clk 0:00:29]}  Rdc8 {[%clk 0:00:18]} 33. Rf3 {[%clk 0:00:29]}  Bc7 {[%clk 0:00:15]} 34. Kf2 {[%clk 0:00:15]}  Nxf4 {[%clk 0:00:13]} 35. Rxf6 {[%clk 0:00:15]}  Bd8 {[%clk 0:00:11]} 36. Ra6 {[%clk 0:00:13]}  Ng6 {[%clk 0:00:09]} 37. Bxd5 {[%clk 0:00:12]}  Rc7 {[%clk 0:00:08]} 38. Nh6 {[%clk 0:00:11]}  f6 {[%clk 0:00:07]} 39. Ng4 {[%clk 0:00:10]}  Rd7 {[%clk 0:00:06]} 40. Nxf6 {[%clk 0:00:10]}  Bxf6 {[%clk 0:00:05]} 41. Raxf6+ {[%clk 0:00:11]}  Kg7 {[%clk 0:00:06]} 42. Rf7+ {[%clk 0:00:11]}  Rxf7 {[%clk 0:00:06]} 43. Rxf7+ {[%clk 0:00:12]}  Kh6 {[%clk 0:00:07]} 44. Rc7 {[%clk 0:00:11]}  Rf8+ {[%clk 0:00:06]} 45. Kg3 {[%clk 0:00:11]}  Re8 {[%clk 0:00:06]} 46. Bf3 {[%clk 0:00:11]}  Re3 {[%clk 0:00:06]} 47. Kf2 {[%clk 0:00:11]}  Rd3 {[%clk 0:00:06]} 48. Be4 {[%clk 0:00:11]}  Rh3 {[%clk 0:00:06]} 49. Bxg6 {[%clk 0:00:10]}  hxg6 {[%clk 0:00:07]} 50. Rc5 {[%clk 0:00:11]}  Rxh2+ {[%clk 0:00:06]} 51. Ke3 {[%clk 0:00:11]}  Rh3+ {[%clk 0:00:06]} 52. Ke4 {[%clk 0:00:12]}  Rh4+ {[%clk 0:00:06]} 53. Kd3 {[%clk 0:00:09]}  g5 {[%clk 0:00:07]} 54. Rxb5 {[%clk 0:00:09]}  g4 {[%clk 0:00:07]} 55. Rb8 {[%clk 0:00:07]}  Rh5 {[%clk 0:00:06]} 56. Rg8 {[%clk 0:00:03]}  Rh3+ {[%clk 0:00:04]} 57. Kc4 {[%clk 0:00:03]}  g3 {[%clk 0:00:04]} 58. b5 {[%clk 0:00:03]}  Kh7 {[%clk 0:00:04]} 59. Rg4 {[%clk 0:00:02]}  Kh6 {[%clk 0:00:03]} 60. b6 {[%clk 0:00:03]}  Rh1 {[%clk 0:00:03]} 61. Rxg3 {[%clk 0:00:03]}  Rb1 {[%clk 0:00:03]} 62. Kc5 {[%clk 0:00:04]}  Kh5 {[%clk 0:00:03]} 63. c4 {[%clk 0:00:04]}  Kh4 {[%clk 0:00:03]} 64. Re3 {[%clk 0:00:05]}  Kg4 {[%clk 0:00:04]} 65. Re5 {[%clk 0:00:06]}  Kf4 {[%clk 0:00:03]} 66. Kc6 {[%clk 0:00:07]}  Rc1 {[%clk 0:00:03]} 67. c5 {[%clk 0:00:08]}  Re1 {[%clk 0:00:03]} 68. b7 {[%clk 0:00:08]}  Rb1 {[%clk 0:00:03]} 69. Re8 {[%clk 0:00:08]} 1-0


[Site "https://www.chess.com"]